bitfinex-derivatives/quotes_SOLF0:USTF0_20250425
["timestamp","ask_amount","ask_price","bid_price","bid_amount"]
[1745553040033,6.5907,151.69,151.65,13.85049806]
[1745553040836,6.5907,151.68,151.65,13.85049806]
[1745553044538,5.29799806,151.71,151.67,5.29799806]
[1745553044733,30.67799806,151.73,151.67,5.29799806]
[1745553045839,25.38,151.73,151.69,5.29799806]
[1745553046334,6.5882,151.74,151.71,11.88709806]
[1745553047736,6.5878,151.75,151.71,11.88709806]
[1745553047937,30.65799806,151.76,151.71,5.29799806]
[1745553048437,6.5883,151.74,151.71,5.29799806]
[1745553049837,6.5883,151.74,151.71,11.88729806]
[1745553051338,6.5878,151.75,151.71,11.88729806]
[1745553056935,6.5881,151.74,151.71,11.88729806]
[1745553060042,6.5881,151.74,151.71,5.29799806]
[1745553060644,6.5881,151.74,151.7,11.88749806]
[1745553061045,6.5881,151.74,151.71,6.5894]
[1745553062541,6.5877,151.75,151.72,6.5889]
[1745553062751,30.65799806,151.76,151.72,5.29799806]
[1745553064248,37.24529806,151.76,151.73,6.5885]
[1745553064449,37.24529806,151.76,151.72,5.29799806]
[1745553064650,30.65799806,151.76,151.72,5.29799806]
[1745553065252,30.65799806,151.76,151.71,6.5892]
[1745553065755,30.65799806,151.76,151.72,6.5889]
[1745553065951,30.65799806,151.76,151.7,5.29799806]
[1745553066152,30.65799806,151.76,151.72,5.29799806]
[1745553066455,37.24529806,151.76,151.73,6.5884]
[1745553067659,6.5864,151.78,151.74,11.88569806]
[1745553067858,6.5864,151.78,151.74,5.29799806]
[1745553068559,6.5864,151.78,151.75,6.5874]
[1745553069060,31.9061,151.79,151.75,6.5874]
[1745553069861,6.5865,151.78,151.75,6.5874]
[1745553070062,5.29799806,151.78,151.74,5.29799806]
[1745553070458,6.5871,151.77,151.74,11.88599806]
[1745553077864,11.88449806,151.78,151.74,11.88599806]
[1745553079066,11.88449806,151.78,151.75,6.5876]
[1745553079261,6.5865,151.78,151.75,6.5876]
[1745553080367,30.61799806,151.79,151.72,3.7997]
[1745553080368,31.906,151.79,151.76,11.88519806]
[1745553080667,6.586,151.79,151.76,11.88519806]
[1745553080961,6.5855,151.8,151.77,6.5867]
[1745553083167,6.5855,151.8,151.76,11.88499806]
[1745553083564,6.5852,151.81,151.76,5.29799806]
[1745553083768,30.61799806,151.82,151.76,5.29799806]
[1745553083969,30.61799806,151.82,151.78,5.29799806]
[1745553084267,6.5851,151.81,151.78,5.29799806]
[1745553084768,6.5856,151.8,151.78,5.29799806]
[1745553086462,6.5852,151.81,151.78,5.29799806]
[1745553090271,6.5852,151.81,151.78,11.88429806]
[1745553090971,6.5852,151.81,151.78,5.29799806]
[1745553094373,6.5855,151.8,151.78,5.29799806]
[1745553094674,30.61799806,151.82,151.78,5.29799806]
[1745553095276,6.5854,151.81,151.78,5.29799806]
[1745553095675,6.5851,151.81,151.78,5.29799806]
[1745553097480,6.5851,151.81,151.78,11.88429806]
[1745553099379,6.5851,151.81,151.78,5.29799806]
[1745553101883,6.5847,151.82,151.8,5.29799806]
[1745553109092,6.585,151.81,151.8,5.29799806]
[1745553109290,5.29799806,151.82,151.77,5.29799806]
[1745553110284,6.5857,151.8,151.77,11.88469806]
[1745553113194,6.5852,151.81,151.78,6.5863]
[1745553113497,6.5852,151.81,151.79,5.29799806]
[1745553118694,6.5855,151.8,151.79,5.29799806]
[1745553121893,6.586,151.79,151.77,5.29799806]
[1745553122100,30.57799806,151.82,151.77,5.29799806]
[1745553122494,6.5858,151.8,151.77,5.29799806]
[1745553123096,6.586,151.79,151.77,5.29799806]
[1745553124600,25.28,151.82,151.77,5.29799806]
[1745553124801,25.28,151.82,151.79,5.29799806]
[1745553126102,31.8649,151.82,151.79,5.29799806]
[1745553127706,31.8649,151.82,151.79,11.88369806]
[1745553129105,25.28,151.82,151.81,5.29799806]
[1745553129501,25.24,151.85,151.81,5.29799806]
[1745553130304,6.584,151.84,151.81,5.29799806]
[1745553130499,25.24,151.85,151.81,5.29799806]
[1745553131204,6.5838,151.84,151.81,5.29799806]
[1745553131505,25.24,151.85,151.81,5.29799806]
[1745553131906,6.5842,151.83,151.81,5.29799806]
[1745553137206,6.5839,151.84,151.81,5.29799806]
[1745553138010,6.5842,151.83,151.81,5.29799806]
[1745553138714,6.5842,151.83,151.82,5.29799806]
[1745553138913,25.24,151.85,151.82,5.29799806]
[1745553138914,6.5838,151.84,151.82,5.29799806]
[1745553143110,31.8235,151.85,151.82,5.29799806]
[1745553143316,31.8235,151.85,151.82,11.88249806]
[1745553143612,31.8235,151.85,151.82,5.29799806]
[1745553144316,6.5837,151.84,151.82,5.29799806]
[1745553147818,37.12149806,151.85,151.82,5.29799806]
[1745553149914,6.5839,151.84,151.82,5.29799806]
[1745553150216,6.5839,151.84,151.81,5.29799806]
[1745553150519,6.5839,151.84,151.81,11.88289806]
[1745553153820,31.8234,151.85,151.81,11.88289806]
[1745553154120,31.8234,151.85,151.82,11.88249806]
[1745553154720,31.8234,151.85,151.82,5.29799806]
[1745553155721,31.8234,151.85,151.82,11.88249806]
[1745553156122,31.8234,151.85,151.82,5.29799806]
[1745553156920,6.5838,151.84,151.82,5.29799806]
[1745553159022,6.5838,151.84,151.8,11.88309806]
[1745553161125,6.5842,151.83,151.8,5.29799806]
[1745553161725,6.5842,151.83,151.8,11.88329806]
[1745553163420,6.5842,151.83,151.8,5.29799806]
[1745553166425,6.5847,151.82,151.8,5.29799806]
[1745553166625,6.5847,151.82,151.78,11.88419806]
[1745553167129,5.29799806,151.79,151.71,1.14645275]
[1745553167328,5.29799806,151.77,151.72,5.29799806]
[1745553167627,25.2,151.79,151.76,5.29799806]
[1745553168428,31.786,151.79,151.76,5.29799806]
[1745553168931,25.2,151.79,151.76,5.29799806]
[1745553170529,25.2,151.79,151.76,11.88509806]
[1745553170730,25.2,151.82,151.78,5.29799806]
[1745553171630,31.7849,151.82,151.78,5.29799806]
[1745553172134,6.5851,151.81,151.78,5.29799806]
[1745553172634,6.5855,151.8,151.78,5.29799806]
[1745553173831,6.5852,151.81,151.78,5.29799806]
[1745553174127,6.5852,151.81,151.78,11.88419806]
[1745553174333,25.2,151.82,151.78,5.29799806]
[1745553175227,31.7849,151.82,151.78,11.88419806]
[1745553176227,31.7849,151.82,151.79,6.5859]
[1745553177833,25.2,151.82,151.79,6.5859]
[1745553180638,31.7847,151.82,151.79,6.5859]
[1745553181537,25.2,151.82,151.79,6.5859]
[1745553182133,25.2,151.82,151.78,5.29799806]
[1745553182334,25.2,151.82,151.8,5.29799806]
[1745553182535,6.5839,151.84,151.8,5.29799806]
[1745553183233,25.2,151.85,151.8,5.29799806]
[1745553183439,25.2,151.85,151.82,5.29799806]
[1745553185337,31.7833,151.85,151.82,11.88229806]
[1745553185941,25.2,151.85,151.81,5.29799806]
[1745553186140,5.29799806,151.84,151.8,5.29799806]
[1745553187238,6.5842,151.83,151.8,11.88319806]
[1745553187842,11.88179806,151.84,151.8,11.88319806]
[1745553189042,5.29799806,151.84,151.8,11.88319806]
[1745553190342,11.88179806,151.84,151.8,11.88319806]
[1745553190646,11.88179806,151.84,151.81,6.585]
[1745553191244,6.5842,151.83,151.8,11.88339806]
[1745553191642,11.88189806,151.84,151.8,11.88339806]
[1745553191843,5.29799806,151.84,151.8,11.88339806]
[1745553192446,6.5842,151.83,151.8,11.88339806]
[1745553192648,6.5842,151.83,151.8,6.5854]
[1745553193349,6.585,151.82,151.78,11.88399806]
[1745553194449,6.585,151.82,151.79,6.5858]
[1745553194745,5.29799806,151.82,151.75,25.2]
[1745553194949,25.16,151.81,151.76,6.5871]
[1745553195153,25.16,151.81,151.76,11.88509806]
[1745553195449,5.29799806,151.8,151.76,5.29799806]
[1745553196051,6.5862,151.79,151.76,11.88509806]
[1745553196951,6.5862,151.79,151.76,5.29799806]
[1745553197455,6.5863,151.78,151.76,5.29799806]
[1745553197952,5.29799806,151.8,151.76,5.29799806]
[1745553198351,6.5864,151.78,151.76,5.29799806]
[1745553198552,5.29799806,151.8,151.74,7.20179806]
[1745553199254,5.29799806,151.8,151.76,5.29799806]
[1745553199554,30.45799806,151.81,151.74,1.9038]
[1745553199751,30.45799806,151.81,151.76,5.29799806]
[1745553200148,6.5862,151.79,151.76,11.88519806]
[1745553200352,30.45799806,151.81,151.76,11.88519806]
[1745553201353,6.5859,151.79,151.76,11.88519806]
[1745553202155,6.5859,151.79,151.76,5.29799806]
[1745553202454,5.29799806,151.79,151.74,7.20179806]
[1745553202850,5.29799806,151.77,151.72,5.29799806]
[1745553203048,30.45799806,151.77,151.71,5.29799806]
[1745553203449,6.5873,151.76,151.72,6.5887]
[1745553203651,30.45799806,151.77,151.72,6.5887]
[1745553204255,6.5877,151.75,151.71,11.88719806]
[1745553204956,5.29799806,151.75,151.7,6.5897]
[1745553205156,5.29799806,151.75,151.7,5.29799806]
[1745553206356,6.5883,151.74,151.71,6.5893]
[1745553206758,5.29799806,151.75,151.72,6.5887]
[1745553206958,30.45799806,151.77,151.72,5.29799806]
[1745553207160,25.16,151.77,151.72,5.29799806]
[1745553208358,31.7468,151.77,151.74,6.5877]
[1745553209957,25.16,151.77,151.74,6.5877]
[1745553210559,31.7468,151.77,151.74,6.5877]
[1745553211357,25.18,151.8,151.76,5.29799806]
[1745553211657,25.18,151.8,151.79,5.29799806]
[1745553211852,6.5847,151.82,151.79,5.29799806]
[1745553212459,31.7644,151.83,151.79,11.88359806]
[1745553212756,31.7644,151.83,151.79,5.29799806]
[1745553214156,6.5847,151.82,151.79,5.29799806]
[1745553215353,6.5847,151.82,151.79,11.88379806]
[1745553215760,6.5847,151.82,151.79,5.29799806]
[1745553216455,6.5847,151.82,151.79,11.88389806]
[1745553216954,6.5847,151.82,151.79,5.29799806]
[1745553218262,6.5847,151.82,151.79,11.88379806]
[1745553219063,31.7643,151.83,151.8,6.5854]
[1745553219461,31.7643,151.83,151.79,5.29799806]
[1745553219663,25.18,151.83,151.79,5.29799806]
[1745553219857,25.18,151.83,151.8,6.5851]
[1745553221261,31.7642,151.83,151.8,6.5851]
[1745553223262,25.18,151.83,151.8,6.5851]
[1745553223461,25.18,151.83,151.81,5.29799806]
[1745553223761,30.43799806,151.86,151.81,5.29799806]
[1745553224262,6.5834,151.85,151.82,6.5846]
[1745553224960,5.29799806,151.84,151.81,5.29799806]
[1745553225160,5.29799806,151.84,151.79,5.29799806]
[1745553225957,6.5849,151.82,151.79,5.29799806]
[1745553227163,30.43799806,151.82,151.74,5.8476]
[1745553227362,30.43799806,151.82,151.76,5.29799806]
[1745553227665,6.5852,151.81,151.77,6.5867]
[1745553229453,6.5855,151.8,151.77,6.5867]
[1745553233867,6.5855,151.8,151.76,11.88509806]
[1745553234866,6.5859,151.79,151.76,11.88509806]
[1745553235471,6.587,151.77,151.74,5.8476]
[1745553235664,6.587,151.77,151.74,9.27719806]
[1745553235966,5.29799806,151.8,151.74,9.27719806]
[1745553236163,6.5866,151.78,151.74,15.86499806]
[1745553238167,6.5866,151.78,151.75,6.5876]
[1745553238370,6.5866,151.78,151.74,9.27719806]
[1745553239766,6.5866,151.78,151.75,6.5876]
[1745553242268,6.5866,151.78,151.74,15.86509806]
[1745553242771,6.5866,151.78,151.75,6.5876]
[1745553245165,6.5866,151.78,151.74,15.86509806]
[1745553245364,6.5868,151.77,151.74,15.86509806]
[1745553245870,6.5868,151.77,151.74,9.27719806]
[1745553246870,6.5865,151.78,151.74,9.27719806]
[1745553248270,6.5865,151.78,151.75,6.5873]
[1745553249074,6.5865,151.78,151.74,15.86509806]
[1745553249275,6.5869,151.77,151.74,15.86509806]
[1745553250775,6.5869,151.77,151.74,13.81749806]
[1745553252174,30.43799806,151.82,151.76,5.29799806]
[1745553252572,6.5859,151.8,151.76,11.88499806]
[1745553253076,30.43799806,151.82,151.76,11.88499806]
[1745553253578,6.5859,151.8,151.76,11.88499806]
[1745553253772,6.5859,151.8,151.77,6.5865]
[1745553254276,6.5859,151.79,151.76,11.88499806]
[1745553256477,6.5856,151.8,151.76,11.88499806]
[1745553256976,30.43799806,151.82,151.76,11.88499806]
[1745553258278,30.43799806,151.82,151.77,6.5866]
[1745553258879,6.5857,151.8,151.77,6.5866]
[1745553260678,6.5852,151.81,151.78,6.5862]
[1745553260877,6.5852,151.81,151.78,11.88419806]
[1745553261579,31.7247,151.82,151.78,11.88419806]
[1745553262480,31.7247,151.82,151.79,6.5859]
[1745553263278,31.7247,151.82,151.78,11.88419806]
[1745553264376,31.7247,151.82,151.78,6.5862]
[1745553264579,31.7247,151.82,151.78,11.88419806]
[1745553266086,31.7247,151.82,151.79,6.5859]
[1745553266286,25.14,151.82,151.79,6.5859]
[1745553266988,31.7246,151.82,151.79,6.5859]
[1745553269790,25.14,151.82,151.79,6.5859]
[1745553270090,25.14,151.82,151.79,6.5858]
[1745553276694,25.14,151.82,151.8,6.5854]
[1745553277292,31.7246,151.82,151.78,5.29799806]
[1745553278294,31.7246,151.82,151.79,6.5858]
[1745553283996,31.7246,151.82,151.78,5.29799806]
[1745553283997,30.43799806,151.82,151.77,6.5866]
[1745553284391,30.43799806,151.82,151.76,5.29799806]
[1745553285194,6.5853,151.81,151.76,5.29799806]
[1745553285694,6.5853,151.81,151.77,6.5865]
[1745553286198,6.5853,151.81,151.78,6.5863]
[1745553288101,37.02269806,151.82,151.78,6.5863]
[1745553288801,37.02269806,151.82,151.78,11.88429806]
[1745553289896,6.5851,151.81,151.78,6.5863]
[1745553290101,30.43799806,151.82,151.78,6.5863]
[1745553290505,37.02279806,151.82,151.78,6.5863]
[1745553291709,37.02279806,151.82,151.79,6.5859]
[1745553291911,25.14,151.82,151.79,5.29799806]
[1745553292106,25.14,151.82,151.81,6.585]
[1745553293609,5.29799806,151.84,151.81,6.585]
[1745553295210,5.29799806,151.84,151.82,6.5845]
[1745553297712,5.29799806,151.84,151.81,6.5849]
[1745553299912,11.88169806,151.84,151.81,6.5849]
[1745553300112,6.5837,151.84,151.81,11.88289806]
[1745553300314,25.06,151.85,151.82,6.5845]
[1745553300805,25.06,151.85,151.81,5.29799806]
[1745553301012,25.06,151.85,151.81,11.88299806]
[1745553301706,25.06,151.85,151.81,5.29799806]
[1745553302311,25.06,151.85,151.81,11.88269806]
[1745553302312,31.6434,151.85,151.81,11.88269806]
[1745553302512,36.94139806,151.85,151.81,11.88269806]
[1745553304013,36.94139806,151.85,151.82,6.5845]
[1745553304213,36.94139806,151.85,151.81,5.29799806]
[1745553304714,36.94139806,151.85,151.81,11.88269806]
[1745553307115,30.35799806,151.85,151.79,5.29799806]
[1745553307317,5.29799806,151.83,151.79,5.29799806]
[1745553307619,6.5847,151.82,151.79,5.29799806]
[1745553307915,5.29799806,151.83,151.79,5.29799806]
[1745553308922,11.88219806,151.83,151.79,5.29799806]
[1745553309110,5.29799806,151.83,151.79,5.29799806]
[1745553309518,5.29799806,151.83,151.8,6.5852]
[1745553309817,5.29799806,151.83,151.79,5.29799806]
[1745553310020,5.29799806,151.83,151.79,11.88359806]
[1745553310219,5.29799806,151.83,151.77,5.29799806]
[1745553310617,11.88309806,151.81,151.77,6.5866]
[1745553310819,5.29799806,151.81,151.76,5.29799806]
[1745553311316,25.06,151.85,151.76,5.29799806]
[1745553311317,5.29799806,151.83,151.79,6.5858]
[1745553311714,11.88249806,151.83,151.79,6.5858]
[1745553312519,6.5846,151.82,151.79,6.5858]
[1745553315713,6.5846,151.82,151.78,6.5862]
[1745553316121,30.33799806,151.81,151.76,5.29799806]
[1745553316418,25.04,151.8,151.76,5.29799806]
[1745553316618,25.04,151.8,151.75,11.88549806]
[1745553316619,6.5862,151.79,151.75,11.88549806]
[1745553316918,11.88419806,151.79,151.75,11.88549806]
[1745553318218,11.88419806,151.79,151.76,6.5872]
[1745553320220,5.29799806,151.79,151.76,6.5872]
[1745553320422,30.33799806,151.8,151.77,6.5867]
[1745553322214,36.92379806,151.8,151.76,6.5871]
[1745553322621,36.92379806,151.8,151.75,5.29799806]
[1745553324223,36.92379806,151.8,151.77,6.5867]
[1745553324524,25.04,151.8,151.77,5.29799806]
[1745553324923,25.04,151.8,151.78,6.586]
[1745553329029,25.04,151.8,151.77,11.88459806]
[1745553329426,31.6255,151.8,151.76,11.88489806]
[1745553329626,31.6255,151.8,151.76,5.29799806]
[1745553330533,31.6255,151.8,151.77,6.5865]
[1745553330829,25.04,151.8,151.77,6.5865]
[1745553331631,31.6255,151.8,151.77,6.5865]
[1745553331831,31.6255,151.8,151.76,11.88509806]
[1745553332533,30.33799806,151.8,151.76,5.29799806]
[1745553332831,30.33799806,151.8,151.74,7.22959806]
[1745553334236,6.5864,151.78,151.75,6.5876]
[1745553334829,6.586,151.79,151.76,6.5871]
[1745553335133,30.33799806,151.8,151.76,6.5871]
[1745553335434,25.04,151.8,151.76,5.29799806]
[1745553336134,25.04,151.8,151.77,6.5864]
[1745553336935,25.04,151.8,151.78,6.5863]
[1745553339236,25.04,151.8,151.7,28.9405]
[1745553339237,30.33799806,151.8,151.7,28.9405]
[1745553339535,6.5862,151.79,151.74,5.29799806]
[1745553339734,6.5862,151.79,151.75,6.5875]
[1745553341237,6.5864,151.78,151.75,6.5875]
[1745553343339,6.586,151.79,151.75,6.5875]
[1745553345343,6.5864,151.78,151.75,6.5875]
[1745553350740,6.586,151.79,151.76,6.5871]
[1745553351048,30.33799806,151.8,151.74,5.29799806]
[1745553351446,36.92349806,151.8,151.74,5.29799806]
[1745553352951,36.92349806,151.8,151.76,6.5868]
[1745553353750,36.92349806,151.8,151.77,6.5867]
[1745553355450,36.92349806,151.8,151.76,6.5871]
[1745553355852,6.5859,151.79,151.76,6.5871]
[1745553356051,30.33799806,151.8,151.75,6.5876]
[1745553356253,5.29799806,151.78,151.73,5.29799806]
[1745553356552,5.29799806,151.76,151.73,6.5882]
[1745553359156,6.587,151.77,151.74,6.588]
[1745553359354,11.88449806,151.78,151.74,6.588]
[1745553359855,6.5868,151.77,151.74,6.588]
[1745553360754,11.88449806,151.78,151.74,6.588]
[1745553362557,6.5868,151.77,151.74,6.588]
[1745553365758,11.88449806,151.78,151.74,6.588]
[1745553368859,6.5868,151.77,151.74,6.588]
[1745553370359,11.88449806,151.78,151.75,6.5874]
[1745553371262,5.29799806,151.78,151.75,6.5874]
[1745553371761,1.858,151.84,151.75,5.29799806]
[1745553371958,30.29799806,151.83,151.77,5.29799806]
[1745553372358,25.0,151.83,151.79,5.29799806]
[1745553372860,30.29799806,151.83,151.79,5.29799806]
[1745553373055,30.29799806,151.83,151.78,5.29799806]
[1745553373457,6.5846,151.82,151.78,11.88409806]
[1745553373760,30.29799806,151.83,151.78,11.88409806]
[1745553373962,30.29799806,151.83,151.78,5.29799806]
[1745553374166,6.5851,151.81,151.78,5.29799806]
[1745553374961,6.5856,151.8,151.78,5.29799806]
[1745553375161,6.5856,151.8,151.77,6.5866]
[1745553375553,6.5867,151.78,151.74,6.5878]
[1745553375864,5.29799806,151.79,151.72,5.29799806]
[1745553376054,30.27799806,151.79,151.72,5.29799806]
[1745553376558,6.5866,151.78,151.74,6.5879]
[1745553376760,30.27799806,151.79,151.72,5.29799806]
[1745553376959,11.88479806,151.77,151.73,6.5882]
[1745553377362,5.29799806,151.77,151.72,5.29799806]
[1745553378263,5.29799806,151.77,151.74,6.588]
[1745553382868,11.88479806,151.77,151.74,6.588]
[1745553383673,11.88479806,151.77,151.73,6.5883]
[1745553384672,24.98,151.79,151.71,6.5893]
[1745553384673,5.29799806,151.75,151.71,6.5893]
[1745553385272,11.88579806,151.75,151.71,6.5893]
[1745553389871,6.5881,151.74,151.7,11.88759806]
[1745553390070,5.29799806,151.71,151.66,1.8531]
[1745553390377,5.29799806,151.71,151.66,7.15109806]
[1745553390673,5.29799806,151.71,151.68,6.5906]
[1745553390873,6.5892,151.72,151.68,6.5906]
[1745553391075,11.88659806,151.73,151.69,6.5902]
[1745553391274,5.29799806,151.73,151.68,5.29799806]
[1745553391676,11.88679806,151.73,151.69,6.5902]
[1745553392774,5.29799806,151.73,151.68,5.29799806]
[1745553392974,36.86589806,151.75,151.7,5.29799806]
[1745553393374,36.86589806,151.75,151.71,6.5891]
[1745553393873,6.5881,151.74,151.71,6.5891]
[1745553395475,6.5886,151.73,151.7,6.5897]
[1745553396376,6.589,151.72,151.69,6.5901]
[1745553396778,6.589,151.72,151.67,5.29799806]
[1745553397078,6.589,151.72,151.68,6.5905]
[1745553397379,6.5894,151.71,151.68,6.5905]
[1745553397574,5.29799806,151.73,151.68,6.5905]
[1745553399280,6.5891,151.72,151.68,6.5905]
[1745553399980,6.5894,151.71,151.67,11.88889806]
[1745553400876,11.88739806,151.71,151.67,11.88889806]
[1745553402482,6.5898,151.7,151.67,11.88889806]
[1745553402680,5.29799806,151.71,151.67,5.29799806]
[1745553402983,6.5903,151.69,151.67,5.29799806]
[1745553403280,5.29799806,151.71,151.67,5.29799806]
[1745553403482,30.25799806,151.71,151.67,5.29799806]
[1745553403683,6.59,151.7,151.67,5.29799806]
[1745553403882,30.25799806,151.71,151.65,13.83369806]
[1745553404084,6.5906,151.69,151.65,13.83369806]
[1745553404383,5.29799806,151.69,151.65,11.88979806]
[1745553404584,30.25799806,151.71,151.66,6.5915]
[1745553404987,6.5901,151.7,151.66,6.5915]
[1745553408486,6.5901,151.7,151.67,6.5911]
[1745553408886,30.25799806,151.71,151.65,5.29799806]
[1745553409187,30.25799806,151.71,151.68,6.5906]
[1745553410088,36.84739806,151.71,151.67,6.5909]
[1745553411588,6.5898,151.7,151.67,6.5909]
[1745553412591,6.5898,151.7,151.66,8.5473]
[1745553413688,6.5903,151.69,151.66,1.9559]
[1745553414088,30.25799806,151.71,151.66,1.9559]
[1745553414593,6.59,151.7,151.66,8.5473]
[1745553416494,6.59,151.7,151.67,6.5911]
[1745553418796,36.84749806,151.71,151.67,6.5911]
[1745553419699,6.5898,151.7,151.67,6.5911]
[1745553420398,36.84749806,151.71,151.67,6.5911]
[1745553420896,6.5899,151.7,151.66,8.5473]
[1745553429101,5.29799806,151.69,151.66,1.9559]
[1745553429293,5.29799806,151.69,151.63,32.21449806]
[1745553429493,5.29799806,151.69,151.63,7.23449806]
[1745553429698,5.29799806,151.67,151.61,1.848]
[1745553430098,30.25799806,151.67,151.61,7.14599806]
[1745553430299,6.5918,151.66,151.62,6.593]
[1745553431101,6.5921,151.65,151.61,13.73959806]
[1745553433903,11.89009806,151.65,151.61,13.73959806]
[1745553435202,5.29799806,151.65,151.52,368.1951]
[1745553435403,5.29799806,151.65,151.6,5.29799806]
[1745553435596,5.29799806,151.65,151.61,2.0088]
[1745553435796,30.25799806,151.67,151.63,6.5927]
[1745553436705,30.25799806,151.67,151.64,6.5924]
[1745553440708,30.23799806,151.7,151.64,5.29799806]
[1745553440910,30.23799806,151.7,151.61,2.0088]
[1745553440911,30.23799806,151.7,151.66,5.29799806]
[1745553441405,30.23799806,151.7,151.67,6.5908]
[1745553441798,30.23799806,151.7,151.66,5.29799806]
[1745553442308,24.94,151.7,151.68,6.5906]
[1745553443110,24.94,151.7,151.67,6.591]
[1745553450318,24.94,151.7,151.68,6.5906]
[1745553450616,11.88709806,151.72,151.68,11.88859806]
[1745553456020,11.88709806,151.72,151.69,6.5902]
[1745553456319,5.29799806,151.72,151.69,6.5902]
[1745553456820,11.88699806,151.72,151.69,6.5902]
[1745553457119,5.29799806,151.72,151.69,6.5902]
[1745553457619,31.5087,151.73,151.69,6.5902]
[1745553457920,6.5889,151.72,151.69,6.5902]
[1745553458312,11.88689806,151.72,151.69,6.5902]
[1745553459823,5.29799806,151.72,151.69,6.5902]
[1745553460319,5.29799806,151.72,151.68,11.88849806]
[1745553461322,11.88699806,151.72,151.68,11.88849806]
[1745553462020,11.88699806,151.72,151.68,6.5905]
[1745553462424,11.88779806,151.7,151.65,5.29799806]
[1745553462724,11.88779806,151.7,151.64,5.29799806]
[1745553463422,11.88779806,151.7,151.66,6.5912]
[1745553464524,5.29799806,151.68,151.62,30.23799806]
[1745553465222,11.88899806,151.68,151.64,6.5924]
[1745553465422,5.29799806,151.68,151.62,5.29799806]
[1745553465623,5.29799806,151.66,151.62,5.29799806]
[1745553465826,5.29799806,151.66,151.63,6.5928]
[1745553478527,5.29799806,151.64,151.61,2.0088]
[1745553478929,5.29799806,151.62,151.5,482.30114618]
[1745553479227,11.89139806,151.62,151.56,5.29799806]
[1745553479432,5.29799806,151.62,151.58,5.29799806]
[1745553479731,5.29799806,151.62,151.57,5.29799806]
[1745553480728,5.29799806,151.64,151.59,5.29799806]
[1745553481130,5.29799806,151.64,151.6,6.5939]
[1745553482334,11.89069806,151.64,151.6,6.5939]
[1745553483228,5.29799806,151.62,151.57,5.29799806]
[1745553483532,5.29799806,151.6,151.55,5.29799806]
[1745553484534,5.29799806,151.6,151.58,6.5949]
[1745553486041,11.89219806,151.6,151.56,6.5958]
[1745553486731,5.29799806,151.6,151.56,6.5958]
[1745553490340,5.29799806,151.6,151.57,6.5954]
[1745553490639,5.29799806,151.6,151.54,36.09229806]
[1745553491033,5.29799806,151.6,151.56,6.5956]
[1745553491541,5.29799806,151.6,151.54,36.09229806]
[1745553491542,5.29799806,151.6,151.57,6.5954]
[1745553492540,5.29799806,151.6,151.56,6.5957]
[1745553493741,11.89219806,151.6,151.56,6.5957]
[1745553493942,5.29799806,151.6,151.55,6.5962]
[1745553495242,5.29799806,151.6,151.57,6.5954]
[1745553498747,31.4938,151.61,151.58,6.595]
[1745553499950,5.29799806,151.64,151.58,5.29799806]
[1745553500150,5.29799806,151.64,151.59,1.9145]
[1745553500649,5.29799806,151.64,151.61,6.5933]
[1745553502354,24.88,151.65,151.6,5.29799806]
[1745553502549,5.29799806,151.67,151.62,5.29799806]
[1745553504353,5.29799806,151.67,151.64,6.5921]
[1745553505358,11.88919806,151.67,151.63,6.5927]
[1745553505855,5.29799806,151.67,151.59,5.7908]
[1745553506058,5.29799806,151.67,151.62,5.29799806]
[1745553506658,5.29799806,151.67,151.63,6.5927]
[1745553509853,11.88919806,151.67,151.62,5.29799806]
[1745553510157,11.88919806,151.67,151.62,11.89109806]
[1745553510460,11.88959806,151.66,151.61,6.5935]
[1745553510660,5.29799806,151.66,151.61,6.5935]
[1745553511459,11.88969806,151.66,151.61,6.5935]
[1745553511858,5.29799806,151.66,151.61,6.5935]
[1745553513161,5.29799806,151.64,151.6,11.89199806]
[1745553514164,5.29799806,151.64,151.59,5.7908]
[1745553514460,5.29799806,151.62,151.59,5.7908]
[1745553515362,5.29799806,151.62,151.59,12.3851]
[1745553518062,11.89159806,151.62,151.59,1.9145]
[1745553518562,5.29799806,151.62,151.59,1.9145]
[1745553519659,5.29799806,151.64,151.59,7.21249806]
[1745553520166,5.29799806,151.64,151.61,6.5937]